[Event "Early-Titled-Tuesday-Blitz-October-10-2023"]
[Site "Chess.com"]
[Date "2023.10.10"]
[Round "5"]
[White "Beca95"]
[Black "TregubovP"]
[Result "1-0"]
[WhiteElo "2887"]
[BlackElo "2584"]
[TimeControl "180+1"]
[EndTime "8:54:43 PDT"]
[Termination "Beca95 won on time"]

1. e4 {[%clk 0:03:00.9]} 1... c5 {[%clk 0:02:59.4]} 2. Nf3 {[%clk 0:03:00.9]}
2... e6 {[%clk 0:02:59.7]} 3. c3 {[%clk 0:03:00]} 3... d5 {[%clk 0:02:54.9]} 4.
exd5 {[%clk 0:02:59.2]} 4... exd5 {[%clk 0:02:54.7]} 5. d4 {[%clk 0:02:57.5]}
5... Nc6 {[%clk 0:02:54.9]} 6. Bb5 {[%clk 0:02:56.6]} 6... Bd6 {[%clk
0:02:55.5]} 7. dxc5 {[%clk 0:02:46]} 7... Bxc5 {[%clk 0:02:55]} 8. O-O {[%clk
0:02:46.2]} 8... Ne7 {[%clk 0:02:55.5]} 9. Nbd2 {[%clk 0:02:43.4]} 9... O-O
{[%clk 0:02:55.9]} 10. Nb3 {[%clk 0:02:43.9]} 10... Bd6 {[%clk 0:02:56.5]} 11.
Bg5 {[%clk 0:02:41.8]} 11... Bg4 {[%clk 0:02:42.4]} 12. Bh4 {[%clk 0:02:35.5]}
12... Qc7 {[%clk 0:02:32.4]} 13. Bg3 {[%clk 0:02:33]} 13... Rad8 {[%clk
0:02:29.8]} 14. Be2 {[%clk 0:02:31.8]} 14... Bxg3 {[%clk 0:02:26]} 15. hxg3
{[%clk 0:02:30.4]} 15... Nf5 {[%clk 0:02:20.9]} 16. Rc1 {[%clk 0:02:12.7]} 16...
Qb6 {[%clk 0:02:18.5]} 17. Nfd4 {[%clk 0:01:44.8]} 17... Bxe2 {[%clk 0:01:53]}
18. Nxe2 {[%clk 0:01:42.5]} 18... a5 {[%clk 0:01:44.4]} 19. Rc2 {[%clk
0:01:27.4]} 19... Rfe8 {[%clk 0:01:39.2]} 20. g4 {[%clk 0:01:24]} 20... a4
{[%clk 0:01:24.1]} 21. gxf5 {[%clk 0:01:11]} 21... axb3 {[%clk 0:01:23.6]} 22.
axb3 {[%clk 0:01:11.9]} 22... Qxb3 {[%clk 0:01:21.5]} 23. Rd2 {[%clk 0:01:12.3]}
23... Qc4 {[%clk 0:01:02.4]} 24. Nd4 {[%clk 0:01:11.7]} 24... Re4 {[%clk
0:00:55.3]} 25. f3 {[%clk 0:01:05.5]} 25... Re5 {[%clk 0:00:49.8]} 26. Re1
{[%clk 0:01:02.5]} 26... Rde8 {[%clk 0:00:34.6]} 27. Rxe5 {[%clk 0:01:01.8]}
27... Rxe5 {[%clk 0:00:34.5]} 28. g4 {[%clk 0:01:02.3]} 28... h6 {[%clk
0:00:32]} 29. Kf2 {[%clk 0:00:59.7]} 29... Qc5 {[%clk 0:00:25.5]} 30. Kg2 {[%clk
0:00:59.4]} 30... Qe7 {[%clk 0:00:22]} 31. Ne2 {[%clk 0:00:49.4]} 31... Re3
{[%clk 0:00:16.5]} 32. Ng3 {[%clk 0:00:39.1]} 32... Ne5 {[%clk 0:00:14.9]} 33.
Re2 {[%clk 0:00:37.3]} 33... Nc4 {[%clk 0:00:12.8]} 34. b3 {[%clk 0:00:36.1]}
34... Rxe2+ {[%clk 0:00:11]} 35. Qxe2 {[%clk 0:00:37]} 35... Qxe2+ {[%clk
0:00:10.7]} 36. Nxe2 {[%clk 0:00:37.9]} 36... Nd2 {[%clk 0:00:09.4]} 37. Nd4
{[%clk 0:00:36]} 37... Kf8 {[%clk 0:00:08.7]} 38. Kf2 {[%clk 0:00:34.5]} 38...
Ke7 {[%clk 0:00:08.2]} 39. Ke3 {[%clk 0:00:34.3]} 39... Nb1 {[%clk 0:00:08.5]}
40. Kd3 {[%clk 0:00:34.1]} 40... Kd6 {[%clk 0:00:07.6]} 41. f4 {[%clk
0:00:24.2]} 41... g6 {[%clk 0:00:06.7]} 42. f6 {[%clk 0:00:18.4]} 42... h5
{[%clk 0:00:06.5]} 43. g5 {[%clk 0:00:18.6]} 43... h4 {[%clk 0:00:06]} 44. f5
{[%clk 0:00:11.6]} 44... h3 {[%clk 0:00:06.2]} 45. fxg6 {[%clk 0:00:11.3]} 45...
fxg6 {[%clk 0:00:06.4]} 46. Nf3 {[%clk 0:00:11.4]} 46... Ke6 {[%clk 0:00:05.2]}
47. c4 {[%clk 0:00:10.4]} 47... dxc4+ {[%clk 0:00:05]} 48. bxc4 {[%clk
0:00:11.3]} 48... Na3 {[%clk 0:00:05]} 49. Kc3 {[%clk 0:00:11.3]} 49... b5
{[%clk 0:00:04.9]} 50. c5 {[%clk 0:00:11.8]} 50... Nc4 {[%clk 0:00:02.3]} 51.
Kb4 {[%clk 0:00:12.2]} 51... Ne5 {[%clk 0:00:01.1]} 52. Nh2 {[%clk 0:00:11.1]}
1-0

[Event "Early-Titled-Tuesday-Blitz-October-10-2023"]
[Site "Chess.com"]
[Date "2023.10.10"]
[Round "5"]
[White "LeoLV10"]
[Black "topin8"]
[Result "0-1"]
[WhiteElo "2554"]
[BlackElo "2439"]
[TimeControl "180+1"]
[EndTime "8:54:44 PDT"]
[Termination "topin8 won by checkmate"]

1. e4 {[%clk 0:03:00.9]} 1... e5 {[%clk 0:02:54.4]} 2. Nf3 {[%clk 0:02:59.8]}
2... Nc6 {[%clk 0:02:52.5]} 3. Bb5 {[%clk 0:02:59.5]} 3... Nf6 {[%clk
0:02:52.5]} 4. O-O {[%clk 0:02:58.9]} 4... Nxe4 {[%clk 0:02:52.1]} 5. d4 {[%clk
0:02:58.1]} 5... Nd6 {[%clk 0:02:51.7]} 6. Bxc6 {[%clk 0:02:55.9]} 6... dxc6
{[%clk 0:02:51.4]} 7. dxe5 {[%clk 0:02:56.8]} 7... Nf5 {[%clk 0:02:51.4]} 8. Qe2
{[%clk 0:02:56.6]} 8... Nd4 {[%clk 0:02:41.2]} 9. Nxd4 {[%clk 0:02:51.4]} 9...
Qxd4 {[%clk 0:02:42.1]} 10. h3 {[%clk 0:02:51.9]} 10... Be6 {[%clk 0:02:38.4]}
11. Nc3 {[%clk 0:02:51.3]} 11... Bc4 {[%clk 0:02:27.7]} 12. Rd1 {[%clk
0:02:50.1]} 12... Qxc3 {[%clk 0:02:12.9]} 13. Qg4 {[%clk 0:02:49.9]} 13... Be6
{[%clk 0:02:11]} 14. Qxe6+ {[%clk 0:02:35.3]} 14... fxe6 {[%clk 0:02:10.6]} 15.
bxc3 {[%clk 0:02:36]} 15... Bc5 {[%clk 0:02:05.6]} 16. Rd3 {[%clk 0:02:21.2]}
16... O-O {[%clk 0:01:50]} 17. Be3 {[%clk 0:02:19.9]} 17... Bxe3 {[%clk
0:01:35.2]} 18. Rxe3 {[%clk 0:02:20.8]} 18... Rad8 {[%clk 0:01:35.3]} 19. Rd3
{[%clk 0:02:20.4]} 19... Rd5 {[%clk 0:01:30.7]} 20. Re1 {[%clk 0:02:05.1]} 20...
Rfd8 {[%clk 0:01:22.3]} 21. Ree3 {[%clk 0:02:01.1]} 21... Rxd3 {[%clk
0:01:20.8]} 22. cxd3 {[%clk 0:02:02]} 22... Rd5 {[%clk 0:01:20]} 23. f4 {[%clk
0:01:57.7]} 23... Ra5 {[%clk 0:00:46.8]} 24. Re2 {[%clk 0:01:57.3]} 24... Ra3
{[%clk 0:00:44.9]} 25. Rc2 {[%clk 0:01:55.9]} 25... Kf7 {[%clk 0:00:42.2]} 26.
Kf2 {[%clk 0:01:56]} 26... g6 {[%clk 0:00:34]} 27. Ke3 {[%clk 0:01:56.2]} 27...
c5 {[%clk 0:00:32]} 28. g4 {[%clk 0:01:51.4]} 28... h6 {[%clk 0:00:30.5]} 29. h4
{[%clk 0:01:48.3]} 29... b5 {[%clk 0:00:23.9]} 30. Ke4 {[%clk 0:01:31.2]} 30...
Ra4+ {[%clk 0:00:23.4]} 31. d4 {[%clk 0:01:30.6]} 31... c6 {[%clk 0:00:16.2]}
32. Ke3 {[%clk 0:01:28.4]} 32... Rc4 {[%clk 0:00:14.1]} 33. Kd3 {[%clk
0:01:02.2]} 33... a5 {[%clk 0:00:09.4]} 34. Rf2 {[%clk 0:00:57.7]} 34... cxd4
{[%clk 0:00:07.5]} 35. cxd4 {[%clk 0:00:57.7]} 35... c5 {[%clk 0:00:06.1]} 36.
dxc5 {[%clk 0:00:51.2]} 36... Rxc5 {[%clk 0:00:07]} 37. Rb2 {[%clk 0:00:51.6]}
37... Rd5+ {[%clk 0:00:06.8]} 38. Ke4 {[%clk 0:00:51.2]} 38... Rc5 {[%clk
0:00:07.2]} 39. Rb3 {[%clk 0:00:49.4]} 39... Ke7 {[%clk 0:00:06.6]} 40. a3
{[%clk 0:00:41.9]} 40... Rc4+ {[%clk 0:00:06.8]} 41. Ke3 {[%clk 0:00:41.8]}
41... b4 {[%clk 0:00:07.1]} 42. axb4 {[%clk 0:00:41.7]} 42... axb4 {[%clk
0:00:08]} 43. Rd3 {[%clk 0:00:34]} 43... g5 {[%clk 0:00:04.3]} 44. hxg5 {[%clk
0:00:25.6]} 44... hxg5 {[%clk 0:00:05.2]} 45. f5 {[%clk 0:00:26.1]} 45... exf5
{[%clk 0:00:03.1]} 46. gxf5 {[%clk 0:00:25.7]} 46... Rc3 {[%clk 0:00:02.6]} 47.
f6+ {[%clk 0:00:20.1]} 47... Ke6 {[%clk 0:00:02.4]} 48. Rxc3 {[%clk 0:00:17.7]}
48... bxc3 {[%clk 0:00:02.8]} 49. Kd3 {[%clk 0:00:16.3]} 49... g4 {[%clk
0:00:03.3]} 50. Kxc3 {[%clk 0:00:16.8]} 50... g3 {[%clk 0:00:03.9]} 51. Kd4
{[%clk 0:00:15.8]} 51... g2 {[%clk 0:00:04.2]} 52. Kc5 {[%clk 0:00:16]} 52...
g1=Q+ {[%clk 0:00:04.5]} 53. Kc6 {[%clk 0:00:16.9]} 53... Qc1+ {[%clk
0:00:04.6]} 54. Kb7 {[%clk 0:00:17.2]} 54... Qb2+ {[%clk 0:00:04.8]} 55. Kc8
{[%clk 0:00:17.7]} 55... Qxe5 {[%clk 0:00:05.7]} 56. Kd8 {[%clk 0:00:18]} 56...
Qd6+ {[%clk 0:00:05.7]} 57. Ke8 {[%clk 0:00:17.6]} 57... Qd7+ {[%clk 0:00:06.1]}
58. Kf8 {[%clk 0:00:18.4]} 58... Qf7# {[%clk 0:00:07]} 0-1

[Event "Early-Titled-Tuesday-Blitz-October-10-2023"]
[Site "Chess.com"]
[Date "2023.10.10"]
[Round "5"]
[White "ylr5000"]
[Black "draksbg"]
[Result "0-1"]
[WhiteElo "2462"]
[BlackElo "2601"]
[TimeControl "180+1"]
[EndTime "8:54:47 PDT"]
[Termination "draksbg won by resignation"]

1. d4 {[%clk 0:03:00.9]} 1... Nf6 {[%clk 0:02:58.5]} 2. Nf3 {[%clk 0:03:00.5]}
2... g6 {[%clk 0:02:57.8]} 3. g3 {[%clk 0:03:00.5]} 3... Bg7 {[%clk 0:02:57.1]}
4. Bg2 {[%clk 0:03:00.7]} 4... O-O {[%clk 0:02:58]} 5. O-O {[%clk 0:03:00.7]}
5... d6 {[%clk 0:02:58.9]} 6. b3 {[%clk 0:02:59.9]} 6... c6 {[%clk 0:02:59.4]}
7. Nbd2 {[%clk 0:02:57.9]} 7... Nbd7 {[%clk 0:02:59.9]} 8. Bb2 {[%clk
0:02:57.8]} 8... e5 {[%clk 0:02:59.8]} 9. dxe5 {[%clk 0:02:58.1]} 9... Ng4
{[%clk 0:02:59.9]} 10. e4 {[%clk 0:02:56]} 10... Ngxe5 {[%clk 0:02:56.8]} 11.
Nxe5 {[%clk 0:02:55.8]} 11... Nxe5 {[%clk 0:02:53.5]} 12. Qc1 {[%clk 0:02:52.1]}
12... Qe7 {[%clk 0:02:53.4]} 13. f4 {[%clk 0:02:47.1]} 13... Ng4 {[%clk
0:02:52.8]} 14. Bxg7 {[%clk 0:02:46.3]} 14... Kxg7 {[%clk 0:02:53.7]} 15. Qb2+
{[%clk 0:02:42.3]} 15... Qf6 {[%clk 0:02:52.7]} 16. Qxf6+ {[%clk 0:02:42.8]}
16... Nxf6 {[%clk 0:02:53.6]} 17. Nc4 {[%clk 0:02:40.5]} 17... d5 {[%clk
0:02:47.4]} 18. exd5 {[%clk 0:02:40.1]} 18... cxd5 {[%clk 0:02:48.2]} 19. Nd6
{[%clk 0:02:35.5]} 19... Rd8 {[%clk 0:02:46.2]} 20. Nb5 {[%clk 0:02:34.5]} 20...
Bf5 {[%clk 0:02:40]} 21. Nd4 {[%clk 0:02:31.3]} 21... Be4 {[%clk 0:02:40.6]} 22.
Rad1 {[%clk 0:02:27.9]} 22... Rac8 {[%clk 0:02:40.7]} 23. Rd2 {[%clk 0:02:27.1]}
23... a6 {[%clk 0:02:39.5]} 24. Re1 {[%clk 0:02:20.2]} 24... Rc3 {[%clk
0:02:25.2]} 25. Bxe4 {[%clk 0:01:58]} 25... Nxe4 {[%clk 0:02:24.5]} 26. Rdd1
{[%clk 0:01:42.6]} 26... Rdc8 {[%clk 0:02:22.6]} 27. Re2 {[%clk 0:01:37.5]}
27... Kf6 {[%clk 0:02:22.8]} 28. Kg2 {[%clk 0:01:35.5]} 28... h5 {[%clk
0:02:22.1]} 29. a4 {[%clk 0:01:29.4]} 29... R8c5 {[%clk 0:02:21.5]} 30. Rde1
{[%clk 0:01:21.2]} 30... Rc7 {[%clk 0:02:16.5]} 31. Rd1 {[%clk 0:01:20]} 31...
h4 {[%clk 0:02:13.1]} 32. gxh4 {[%clk 0:01:17.5]} 32... Rc8 {[%clk 0:02:12.9]}
33. Rd3 {[%clk 0:01:09.9]} 33... R3c5 {[%clk 0:02:08.3]} 34. Rh3 {[%clk
0:00:57.4]} 34... Rh8 {[%clk 0:02:05.2]} 35. Nf3 {[%clk 0:00:53.2]} 35... Rc3
{[%clk 0:02:01.6]} 36. Ng5 {[%clk 0:00:49.2]} 36... Rxh3 {[%clk 0:01:59.6]} 37.
Kxh3 {[%clk 0:00:48.2]} 37... Kf5 {[%clk 0:01:31.5]} 38. Nxf7 {[%clk 0:00:46.4]}
38... Rc8 {[%clk 0:01:01.6]} 39. Ne5 {[%clk 0:00:41.9]} 39... Kxf4 {[%clk
0:00:59.7]} 40. Nxg6+ {[%clk 0:00:40.8]} 40... Kf3 {[%clk 0:01:00]} 41. Rg2
{[%clk 0:00:38.8]} 41... Nf2+ {[%clk 0:00:57]} 42. Rxf2+ {[%clk 0:00:39.2]}
42... Kxf2 {[%clk 0:00:57.9]} 43. h5 {[%clk 0:00:39.7]} 43... Rxc2 {[%clk
0:00:46.4]} 44. h6 {[%clk 0:00:37.3]} 44... Rc7 {[%clk 0:00:46]} 45. Kg4 {[%clk
0:00:31.9]} 45... d4 {[%clk 0:00:45.6]} 46. Ne5 {[%clk 0:00:30.5]} 46... Re7
{[%clk 0:00:42.1]} 47. Kf5 {[%clk 0:00:29.1]} 47... Ke3 {[%clk 0:00:39.9]} 48.
Kf6 {[%clk 0:00:29.4]} 48... Rc7 {[%clk 0:00:34.6]} 49. Kg6 {[%clk 0:00:24.6]}
49... Ke4 {[%clk 0:00:35]} 50. Nf7 {[%clk 0:00:21.2]} 50... Rc6+ {[%clk
0:00:31.2]} 51. Kg5 {[%clk 0:00:19]} 51... Rc5+ {[%clk 0:00:30.7]} 52. Kg4
{[%clk 0:00:18.6]} 52... Ke3 {[%clk 0:00:24.6]} 53. h7 {[%clk 0:00:18.6]} 53...
Rc8 {[%clk 0:00:24.9]} 54. h8=Q {[%clk 0:00:16.2]} 54... Rxh8 {[%clk 0:00:23.8]}
55. Nxh8 {[%clk 0:00:17.1]} 55... d3 {[%clk 0:00:23.9]} 56. Nf7 {[%clk 0:00:16]}
56... d2 {[%clk 0:00:22.5]} 0-1

[Event "Early-Titled-Tuesday-Blitz-October-10-2023"]
[Site "Chess.com"]
[Date "2023.10.10"]
[Round "5"]
[White "CheckThis4"]
[Black "nihalsarin"]
[Result "0-1"]
[WhiteElo "2722"]
[BlackElo "3130"]
[TimeControl "180+1"]
[EndTime "8:54:50 PDT"]
[Termination "nihalsarin won by resignation"]

1. e4 {[%clk 0:03:00.9]} 1... b6 {[%clk 0:03:00.9]} 2. d4 {[%clk 0:02:59.3]}
2... e6 {[%clk 0:03:01.8]} 3. Nc3 {[%clk 0:02:53]} 3... g6 {[%clk 0:03:02.7]} 4.
Be3 {[%clk 0:02:50.3]} 4... Bb7 {[%clk 0:03:03.1]} 5. Qd2 {[%clk 0:02:49.4]}
5... h6 {[%clk 0:03:02.9]} 6. h4 {[%clk 0:02:46.5]} 6... Bg7 {[%clk 0:03:02.4]}
7. h5 {[%clk 0:02:45.8]} 7... g5 {[%clk 0:03:01.7]} 8. f4 {[%clk 0:02:45.9]}
8... gxf4 {[%clk 0:03:00.8]} 9. Bxf4 {[%clk 0:02:46.8]} 9... Nf6 {[%clk
0:02:56.7]} 10. e5 {[%clk 0:02:38]} 10... Ne4 {[%clk 0:02:46.5]} 11. Nxe4 {[%clk
0:02:36.7]} 11... Bxe4 {[%clk 0:02:47.4]} 12. Nf3 {[%clk 0:02:36.3]} 12... Nc6
{[%clk 0:02:47]} 13. O-O-O {[%clk 0:02:32.5]} 13... Qe7 {[%clk 0:02:46.8]} 14.
Bd3 {[%clk 0:02:27.2]} 14... Bxd3 {[%clk 0:02:27.3]} 15. Qxd3 {[%clk 0:02:28.1]}
15... O-O-O {[%clk 0:02:27.7]} 16. Qa6+ {[%clk 0:02:15.6]} 16... Kb8 {[%clk
0:02:27]} 17. a3 {[%clk 0:02:09.4]} 17... f6 {[%clk 0:02:23.5]} 18. Rhe1 {[%clk
0:02:07.2]} 18... Rhf8 {[%clk 0:02:18.4]} 19. g3 {[%clk 0:02:03.3]} 19... fxe5
{[%clk 0:02:08.1]} 20. Nxe5 {[%clk 0:02:00.1]} 20... Bxe5 {[%clk 0:02:07.3]} 21.
dxe5 {[%clk 0:01:56.1]} 21... Rf5 {[%clk 0:02:06.7]} 22. Re4 {[%clk 0:01:50.6]}
22... Rxh5 {[%clk 0:02:03.3]} 23. Ra4 {[%clk 0:01:44.9]} 23... Qc5 {[%clk
0:01:53.3]} 24. Kb1 {[%clk 0:01:28.7]} 24... Rh2 {[%clk 0:01:43.3]} 25. Qd3
{[%clk 0:00:57.9]} 25... a5 {[%clk 0:01:29.5]} 26. Rc4 {[%clk 0:00:57.7]} 26...
Nxe5 {[%clk 0:01:20.3]} 27. Rxc5 {[%clk 0:00:43.1]} 27... Nxd3 {[%clk
0:01:20.1]} 28. Bxc7+ {[%clk 0:00:42.6]} 28... Kc8 {[%clk 0:01:20.9]} 29. Bxd8+
{[%clk 0:00:38.7]} 29... Nxc5 {[%clk 0:01:17.4]} 30. Bxb6 {[%clk 0:00:38.6]}
30... Ne4 {[%clk 0:01:17.3]} 31. Bxa5 {[%clk 0:00:37.1]} 31... Nxg3 {[%clk
0:01:17.6]} 32. a4 {[%clk 0:00:35.8]} 32... h5 {[%clk 0:01:15.5]} 33. Bb6 {[%clk
0:00:31.6]} 33... h4 {[%clk 0:01:13.6]} 34. a5 {[%clk 0:00:31.3]} 34... Rh1
{[%clk 0:01:04.2]} 35. Rxh1 {[%clk 0:00:28.8]} 35... Nxh1 {[%clk 0:01:05.1]} 36.
a6 {[%clk 0:00:26.3]} 36... h3 {[%clk 0:01:03.4]} 37. Bg1 {[%clk 0:00:24.9]}
37... Nf2 {[%clk 0:00:59.3]} 38. b4 {[%clk 0:00:16.6]} 38... Ng4 {[%clk
0:00:59.3]} 39. b5 {[%clk 0:00:14.1]} 39... h2 {[%clk 0:00:59.9]} 40. Bxh2
{[%clk 0:00:13.4]} 40... Nxh2 {[%clk 0:01:00.8]} 41. b6 {[%clk 0:00:13.5]} 41...
Nf3 {[%clk 0:00:58.7]} 42. Kb2 {[%clk 0:00:12.7]} 42... e5 {[%clk 0:00:50.3]}
43. Kc3 {[%clk 0:00:12.8]} 43... e4 {[%clk 0:00:48.7]} 44. Kc4 {[%clk 0:00:12]}
44... Kb8 {[%clk 0:00:40.4]} 45. b7 {[%clk 0:00:07.9]} 45... d5+ {[%clk
0:00:16.5]} 46. Kxd5 {[%clk 0:00:07.3]} 46... e3 {[%clk 0:00:17.1]} 47. Kc6
{[%clk 0:00:06.9]} 47... Ne5+ {[%clk 0:00:17.2]} 48. Kb6 {[%clk 0:00:07]} 48...
Nc4+ {[%clk 0:00:13.5]} 49. Kc6 {[%clk 0:00:07.3]} 49... Na5+ {[%clk 0:00:13.8]}
50. Kb6 {[%clk 0:00:07.6]} 50... Nxb7 {[%clk 0:00:14.7]} 51. axb7 {[%clk
0:00:08]} 51... e2 {[%clk 0:00:14.9]} 52. c4 {[%clk 0:00:08.7]} 52... e1=Q
{[%clk 0:00:15.8]} 53. c5 {[%clk 0:00:09.6]} 53... Qb4+ {[%clk 0:00:16.3]} 54.
Kc6 {[%clk 0:00:09.3]} 54... Qxb7+ {[%clk 0:00:17.1]} 55. Kd6 {[%clk 0:00:08.7]}
55... Qc7+ {[%clk 0:00:18]} 56. Kd5 {[%clk 0:00:08.6]} 56... Kb7 {[%clk
0:00:18.9]} 57. Kc4 {[%clk 0:00:09]} 57... Qc6 {[%clk 0:00:19.8]} 58. Kb3 {[%clk
0:00:09.4]} 58... Kc7 {[%clk 0:00:20.7]} 0-1

[Event "Early-Titled-Tuesday-Blitz-October-10-2023"]
[Site "Chess.com"]
[Date "2023.10.10"]
[Round "5"]
[White "Druid24"]
[Black "OparinGrigoriy"]
[Result "1-0"]
[WhiteElo "2726"]
[BlackElo "2983"]
[TimeControl "180+1"]
[EndTime "8:55:00 PDT"]
[Termination "Druid24 won by resignation"]

1. e4 {[%clk 0:03:00.9]} 1... c5 {[%clk 0:02:59.8]} 2. Nc3 {[%clk 0:03:01.3]}
2... Nc6 {[%clk 0:03:00.2]} 3. Bb5 {[%clk 0:03:01.9]} 3... Nd4 {[%clk
0:03:00.1]} 4. Bc4 {[%clk 0:03:02]} 4... e6 {[%clk 0:03:00.4]} 5. Nge2 {[%clk
0:03:01.6]} 5... a6 {[%clk 0:02:59.3]} 6. a4 {[%clk 0:03:01.3]} 6... Nf6 {[%clk
0:02:59.7]} 7. O-O {[%clk 0:03:01]} 7... d5 {[%clk 0:03:00]} 8. exd5 {[%clk
0:03:01.9]} 8... exd5 {[%clk 0:03:00.9]} 9. Ba2 {[%clk 0:03:02.3]} 9... Bd6
{[%clk 0:03:00.9]} 10. d3 {[%clk 0:03:01.6]} 10... Bg4 {[%clk 0:02:59.8]} 11. h3
{[%clk 0:03:00.2]} 11... Nxe2+ {[%clk 0:02:53.4]} 12. Nxe2 {[%clk 0:03:01.1]}
12... Bh5 {[%clk 0:02:54.1]} 13. f3 {[%clk 0:02:57.1]} 13... O-O {[%clk
0:02:52.6]} 14. g4 {[%clk 0:02:39.8]} 14... Bg6 {[%clk 0:02:52.4]} 15. f4 {[%clk
0:02:40.3]} 15... h6 {[%clk 0:02:43.7]} 16. f5 {[%clk 0:02:36.5]} 16... Bh7
{[%clk 0:02:43.7]} 17. Bf4 {[%clk 0:02:34.7]} 17... Re8 {[%clk 0:02:42.9]} 18.
Qd2 {[%clk 0:02:32.6]} 18... Kf8 {[%clk 0:02:37.3]} 19. Rae1 {[%clk 0:02:29.1]}
19... Bg8 {[%clk 0:02:34.6]} 20. Bxh6 {[%clk 0:02:14.3]} 20... gxh6 {[%clk
0:02:26.7]} 21. Qxh6+ {[%clk 0:02:15.2]} 21... Ke7 {[%clk 0:02:27.4]} 22. g5
{[%clk 0:02:07.8]} 22... Kd7 {[%clk 0:02:23.8]} 23. Qxf6 {[%clk 0:01:53.9]}
23... Qxf6 {[%clk 0:02:19.2]} 24. gxf6 {[%clk 0:01:53.8]} 24... d4 {[%clk
0:01:41.2]} 25. Kf2 {[%clk 0:01:22.8]} 25... Be5 {[%clk 0:01:37.9]} 26. Bd5
{[%clk 0:01:12]} 26... Bxf6 {[%clk 0:01:20.9]} 27. Bxb7 {[%clk 0:01:10.9]} 27...
Rab8 {[%clk 0:01:21.4]} 28. Bxa6 {[%clk 0:01:11]} 28... Bh4+ {[%clk 0:01:21.8]}
29. Ng3 {[%clk 0:00:59.1]} 29... Re3 {[%clk 0:01:16.2]} 30. Rxe3 {[%clk
0:00:44.9]} 30... dxe3+ {[%clk 0:01:17.1]} 31. Kf3 {[%clk 0:00:45.4]} 31... Rxb2
{[%clk 0:01:17.7]} 32. Bb5+ {[%clk 0:00:42.4]} 32... Kc7 {[%clk 0:01:15.9]} 33.
Kxe3 {[%clk 0:00:36.9]} 33... Bxg3 {[%clk 0:01:08.6]} 34. Rg1 {[%clk 0:00:37]}
34... Be5 {[%clk 0:01:09.2]} 35. Rxg8 {[%clk 0:00:36]} 35... Rxc2 {[%clk
0:01:09.9]} 36. Ke4 {[%clk 0:00:32.6]} 36... Bd4 {[%clk 0:01:02.5]} 37. Kd5
{[%clk 0:00:31.5]} 37... Rf2 {[%clk 0:00:57.7]} 38. Rg5 {[%clk 0:00:27.4]} 38...
Kb6 {[%clk 0:00:47.3]} 39. Rh5 {[%clk 0:00:26.2]} 39... Bf6 {[%clk 0:00:43.3]}
40. Be8 {[%clk 0:00:24.9]} 40... Rf3 {[%clk 0:00:37.5]} 41. Ke4 {[%clk
0:00:25.2]} 41... Rf1 {[%clk 0:00:32.5]} 42. Bxf7 {[%clk 0:00:25.5]} 42... Re1+
{[%clk 0:00:33.2]} 43. Kd5 {[%clk 0:00:23.5]} 43... Re5+ {[%clk 0:00:33.3]} 44.
Kd6 {[%clk 0:00:23.4]} 44... Re3 {[%clk 0:00:29.9]} 45. Bc4 {[%clk 0:00:23.8]}
45... Bd4 {[%clk 0:00:29.3]} 46. Rh6 {[%clk 0:00:20.6]} 46... Ka5 {[%clk
0:00:25.2]} 47. f6 {[%clk 0:00:20]} 47... Rf3 {[%clk 0:00:21.7]} 48. f7 {[%clk
0:00:19.5]} 48... Kxa4 {[%clk 0:00:21.9]} 49. Kd7 {[%clk 0:00:19]} 49... Kb4
{[%clk 0:00:20.7]} 50. Ke8 {[%clk 0:00:18.6]} 50... Re3+ {[%clk 0:00:19.9]} 51.
Re6 {[%clk 0:00:18.5]} 51... Rxh3 {[%clk 0:00:18.5]} 52. f8=Q {[%clk 0:00:18.2]}
52... Rh8 {[%clk 0:00:18.9]} 53. Qxh8 {[%clk 0:00:17.7]} 53... Bxh8 {[%clk
0:00:19.8]} 54. Kd7 {[%clk 0:00:18.1]} 54... Kc3 {[%clk 0:00:19.9]} 55. Kc6
{[%clk 0:00:19]} 55... Bd4 {[%clk 0:00:20.5]} 56. Rd6 {[%clk 0:00:19.5]} 56...
Bg1 {[%clk 0:00:21]} 57. Rd5 {[%clk 0:00:20.4]} 57... Kb4 {[%clk 0:00:21]} 58.
Rg5 {[%clk 0:00:19.8]} 58... Be3 {[%clk 0:00:21.4]} 59. Rg2 {[%clk 0:00:19.7]}
59... Bd4 {[%clk 0:00:21.8]} 60. Re2 {[%clk 0:00:18.8]} 60... Bg1 {[%clk
0:00:21]} 61. Re1 {[%clk 0:00:19]} 61... Bd4 {[%clk 0:00:21.4]} 62. Rb1+ {[%clk
0:00:19.9]} 62... Kc3 {[%clk 0:00:21.5]} 63. Rb5 {[%clk 0:00:20.8]} 63... Bg1
{[%clk 0:00:20.1]} 64. Rxc5 {[%clk 0:00:21.3]} 64... Kd4 {[%clk 0:00:20.9]} 65.
Rg5 {[%clk 0:00:20.9]} 65... Be3 {[%clk 0:00:20.8]} 66. Rg4+ {[%clk 0:00:21.5]}
66... Kc3 {[%clk 0:00:20.9]} 67. Kd5 {[%clk 0:00:22.1]} 67... Bf2 {[%clk
0:00:21.1]} 68. d4 {[%clk 0:00:21.8]} 68... Kd2 {[%clk 0:00:20.4]} 1-0